bitfinex-derivatives/quotes_ETHF0:USTF0_20241017
["timestamp","ask_amount","ask_price","bid_price","bid_amount"]
[1729134473466,0.80206,2628.1,2628.0,1.37817118]
[1729134473667,0.80206,2628.1,2628.0,2.82773962]
[1729134474072,1.18485,2628.2,2628.1,0.38056]
[1729134474369,1.18485,2628.2,2628.1,1.37816118]
[1729134474673,1.18485,2628.2,2628.1,0.79096]
[1729134475680,1.18485,2628.2,2628.1,0.4104]
[1729134475874,1.18485,2628.2,2628.1,0.79096]
[1729134477072,0.78925,2628.2,2628.1,0.79096]
[1729134481379,0.38055,2628.2,2628.1,0.79096]
[1729134481679,0.38053,2628.4,2628.3,0.38052]
[1729134481880,0.38053,2628.4,2628.3,1.37821192]
[1729134482181,0.38053,2628.4,2628.3,2.8279655]
[1729134482981,0.38053,2628.4,2628.3,1.37821192]
[1729134484279,0.59704205,2628.5,2628.4,0.38051]
[1729134484480,1.5779,2628.6,2628.5,0.3805]
[1729134484685,0.4105,2628.6,2628.5,0.3805]
[1729134484893,0.79098,2628.6,2628.5,1.37819192]
[1729134485587,0.79098,2628.6,2628.5,0.3805]
[1729134485885,0.79098,2628.6,2628.5,1.37819192]
[1729134486393,3.2078,2628.7,2628.6,0.38048]
[1729134486589,3.58827,2628.7,2628.6,1.79784404]
[1729134486778,3.58827,2628.7,2628.6,3.24705223]
[1729134487184,3.58827,2628.7,2628.6,1.79784404]
[1729134487481,0.38047,2628.7,2628.6,1.79784404]
[1729134487688,0.38047,2628.7,2628.6,3.2467252]
[1729134487890,0.38047,2628.7,2628.6,1.41736404]
[1729134488193,0.38047,2628.7,2628.6,0.80058]
[1729134488794,0.38046,2628.8,2628.7,0.38046]
[1729134490096,3.6031,2628.9,2628.6,0.80057]
[1729134490097,0.38047,2628.7,2628.6,0.80057]
[1729134492098,0.38047,2628.7,2628.6,0.4201]
[1729134492298,0.79347,2628.7,2628.6,0.4201]
[1729134492699,0.79347,2628.7,2628.6,0.80058]
[1729134493096,0.413,2628.7,2628.5,0.38049]
[1729134493300,0.38048,2628.6,2628.5,0.38049]
[1729134494000,0.38051,2628.4,2628.3,0.4032]
[1729134494192,0.38054,2628.2,2628.1,1.37781404]
[1729134494391,0.38054,2628.2,2628.0,1.90913789]
[1729134494392,0.38056,2628.1,2628.0,1.40986404]
[1729134494597,0.38056,2628.1,2628.0,0.4126]
[1729134495403,0.38056,2628.1,2628.0,0.79317]
[1729134495603,0.38056,2628.1,2628.0,0.4126]
[1729134496000,0.38056,2628.1,2627.8,4.191]
[1729134496001,0.38058,2627.9,2627.8,5.56885404]
[1729134496195,0.38058,2628.0,2627.9,0.38058]
[1729134498507,0.38057,2628.1,2628.0,0.38056]
[1729134498802,3.6335,2628.3,2627.7,0.4126]
[1729134498803,0.38055,2628.2,2628.1,0.38055]
[1729134499403,0.38054,2628.3,2628.2,0.38054]
[1729134503006,0.38055,2628.2,2628.1,0.38054]
[1729134503708,0.38055,2628.2,2628.1,1.82930668]
[1729134503909,0.38055,2628.2,2628.1,3.32584457]
[1729134506607,0.38053,2628.3,2628.2,0.38053]
[1729134506812,0.38053,2628.3,2628.2,2.20861754]
[1729134507700,0.38053,2628.3,2628.2,3.65750131]
[1729134507912,0.38053,2628.3,2628.2,2.20861754]
[1729134508613,0.38053,2628.3,2628.2,3.65755661]
[1729134509517,0.38053,2628.3,2628.2,2.20861754]
[1729134510505,0.38053,2628.3,2628.2,1.41528754]
[1729134510921,0.38053,2628.3,2628.2,1.79582754]
[1729134511914,0.38053,2628.3,2628.2,0.79874]
[1729134513606,0.38052,2628.4,2628.3,0.38051]
[1729134514215,4.0617,2628.5,2628.2,0.4182]
[1729134514216,0.80721,2628.5,2628.4,0.38051]
[1729134514733,0.38049,2628.6,2628.5,0.38048]
[1729134517922,0.38047,2628.7,2628.6,0.38047]
[1729134518123,0.78057,2628.8,2628.7,0.38047]
[1729134519216,0.78057,2628.8,2628.7,0.79207]
[1729134519418,0.78057,2628.8,2628.7,1.78932395]
[1729134519819,0.4001,2628.8,2628.7,1.78932395]
[1729134520022,3.6233,2629.2,2628.9,0.38042]
[1729134520225,3.6233,2629.2,2628.9,0.99704415]
[1729134520523,4.00371,2629.2,2629.1,0.38041]
[1729134521719,3.2078,2629.2,2628.9,0.99704415]
[1729134522051,0.38042,2629.1,2629.0,0.38041]
[1729134524610,0.38044,2629.0,2628.9,1.37747415]
[1729134524811,0.38044,2629.0,2628.9,0.38043]
[1729134530024,3.2078,2629.3,2629.0,0.38042]
[1729134530025,0.38042,2629.1,2629.0,0.38042]
[1729134534025,4.78227357,2629.4,2628.8,0.3972]
[1729134534224,0.38042,2629.1,2629.0,0.38041]
[1729134537025,0.38041,2629.2,2629.1,0.3804]
[1729134546141,4.78227357,2629.4,2628.8,0.3972]
[1729134546336,0.38042,2629.1,2629.0,0.38041]
[1729134549542,1.61042,2629.1,2629.0,0.38041]
[1729134554935,1.23,2629.1,2629.0,0.38041]
[1729134555140,1.61041,2629.1,2629.0,0.38041]
[1729134558746,1.61041,2629.1,2629.0,1.37745415]
[1729134560245,1.61041,2629.1,2629.0,1.8306635]
[1729134561047,1.61041,2629.1,2629.0,3.32654442]
[1729134561455,1.61041,2629.1,2629.0,1.8306635]
[1729134562138,1.61041,2629.1,2629.0,0.99799616]
[1729134562344,0.38044,2628.9,2628.8,0.99799616]
[1729134562542,1.61044,2628.9,2628.8,0.99799616]
[1729134562754,1.61044,2628.9,2628.8,1.37844616]
[1729134563246,1.61044,2628.9,2628.8,2.8294497]
[1729134563455,1.61044,2628.9,2628.8,1.37844616]
[1729134564099,1.61044,2628.9,2628.8,0.38045]
[1729134564654,0.38047,2628.8,2628.7,0.38046]
[1729134565756,5.6678,2628.8,2628.4,0.99799616]
[1729134565956,1.23,2628.5,2628.2,5.18899616]
[1729134566256,1.61053,2628.3,2628.2,0.38054]
[1729134566864,0.38054,2628.2,2628.1,0.4262]
[1729134567066,1.61054,2628.2,2628.1,0.80676]
[1729134567755,1.23,2628.2,2628.1,0.80676]
[1729134568053,1.61053,2628.3,2628.2,0.38054]
[1729134568458,1.23,2628.3,2628.2,0.38054]
[1729134568666,2.82542,2628.4,2628.3,0.38053]
[1729134569762,2.40232,2628.4,2628.3,0.38053]
[1729134569969,2.40232,2628.4,2628.3,1.61053]
[1729134569970,0.3913,2628.4,2628.3,1.61053]
[1729134570165,3.2078,2628.5,2628.4,0.38051]
[1729134570368,3.2078,2628.5,2628.4,2.00591]
[1729134570555,3.2078,2628.5,2628.4,5.81071]
[1729134571764,4.4378,2628.7,2628.6,0.38048]
[1729134572166,1.23,2628.7,2628.6,3.32492609]
[1729134572354,4.4378,2628.7,2628.6,3.32492609]
[1729134573361,4.4378,2628.7,2628.6,1.82904517]
[1729134573362,1.23,2628.7,2628.6,1.82904517]
[1729134573581,4.4378,2628.7,2628.6,1.82904517]
[1729134573767,4.4378,2628.7,2628.6,3.32492609]
[1729134574466,4.4378,2628.7,2628.6,1.82904517]
[1729134574771,4.81827,2628.7,2628.6,1.82904517]
[1729134574973,4.4378,2628.7,2628.6,1.82904517]
[1729134575363,4.4378,2628.7,2628.6,3.32492609]
[1729134575673,4.4378,2628.7,2628.6,2.82580633]
[1729134575866,1.23,2628.7,2628.6,3.32492609]
[1729134576867,1.23,2628.7,2628.6,3.32477453]
[1729134577268,1.1836,2628.9,2628.6,4.17429453]
[1729134577467,2.79405,2628.9,2628.8,0.9967031]
[1729134577767,2.79405,2628.9,2628.8,1.3771531]
[1729134577969,2.40615,2628.9,2628.8,1.3771531]
[1729134578166,2.40615,2628.9,2628.8,4.05549393]
[1729134578469,2.40615,2628.9,2628.8,4.05551095]
[1729134578669,2.40615,2628.9,2628.8,2.6071531]
[1729134578865,2.40615,2628.9,2628.8,4.05551318]
[1729134579070,2.40615,2628.9,2628.8,1.3771531]
[1729134579272,2.40615,2628.9,2628.8,0.38045]
[1729134581967,0.7957,2628.9,2628.8,1.61045]
[1729134582272,0.3987,2628.9,2628.8,2.6071531]
[1729134582477,0.3987,2628.9,2628.8,3.0047531]
[1729134585675,0.77914,2628.9,2628.8,2.00805]
[1729134585875,0.3987,2628.9,2628.8,2.00805]
[1729134586075,1.6287,2628.9,2628.8,0.9967031]
[1729134586270,1.6287,2628.9,2628.7,0.38046]
[1729134586271,0.38045,2628.8,2628.7,0.38046]
[1729134586584,1.61045,2628.8,2628.7,1.61046]
[1729134586770,1.61045,2628.8,2628.7,2.6071631]
[1729134587381,1.61045,2628.8,2628.7,1.61046]
[1729134589382,0.77915,2628.9,2628.8,0.38045]
[1729134589679,0.77915,2628.9,2628.8,2.00495]
[1729134594281,0.77915,2628.9,2628.8,3.0016531]
[1729134595377,2.00915,2628.9,2628.8,0.38045]
[1729134595593,2.00915,2628.9,2628.8,1.3771531]
[1729134595983,2.00915,2628.9,2628.8,0.38045]
[1729134596987,2.00915,2628.9,2628.8,0.77305]
[1729134597281,2.00915,2628.9,2628.8,1.7697531]
[1729134598084,2.00915,2628.9,2628.8,0.77305]
[1729134598581,2.00915,2628.9,2628.8,1.7697531]
[1729134601289,2.00915,2628.9,2628.8,0.77305]
[1729134601483,0.77915,2628.9,2628.8,0.77305]
[1729134601785,0.3987,2628.9,2628.8,2.00305]
[1729134601981,0.77914,2628.9,2628.8,2.00305]
[1729134604889,0.3987,2628.9,2628.8,2.00305]
[1729134605089,0.77914,2628.9,2628.8,2.00305]
[1729134609187,0.77914,2628.9,2628.8,0.77305]
[1729134609396,0.77914,2628.9,2628.8,1.3893031]
[1729134609893,2.00914,2628.9,2628.8,1.3893031]
[1729134610190,0.77914,2628.9,2628.8,0.77305]
[1729134610493,0.77914,2628.9,2628.8,1.7697531]
[1729134614391,0.77914,2628.9,2628.8,3.22043988]
[1729134614895,0.77914,2628.9,2628.8,2.22373835]
[1729134615497,0.77914,2628.9,2628.8,3.71961927]
[1729134616295,0.77914,2628.9,2628.8,0.77305]
[1729134619695,0.3987,2628.9,2628.8,2.00305]
[1729134619895,0.38043,2629.0,2628.8,1.6226]
[1729134620197,3.6035,2629.1,2628.9,1.23]
[1729134620401,0.38042,2629.0,2628.9,1.61042]
[1729134621403,1.61042,2629.0,2628.9,1.61042]
[1729134624504,0.38042,2629.0,2628.9,4.55789126]
[1729134624705,3.6035,2629.1,2629.0,0.38042]
[1729134624706,3.98392,2629.1,2629.0,0.38042]
[1729134625003,3.98392,2629.1,2629.0,3.33032135]
[1729134625296,3.98392,2629.1,2629.0,1.83201034]
[1729134625692,3.98392,2629.1,2629.0,1.83198002]
[1729134626099,3.98392,2629.1,2629.0,3.33029103]
[1729134626302,3.98392,2629.1,2629.0,1.83198002]
[1729134626901,3.98392,2629.1,2629.0,3.33029103]
[1729134627099,3.98392,2629.1,2629.0,1.83198002]
[1729134627304,0.3957,2629.1,2629.0,1.83198002]
[1729134627601,0.77611,2629.1,2629.0,3.33029103]
[1729134628407,0.38041,2629.1,2629.0,3.33029103]
[1729134629004,4.4378,2629.2,2629.0,2.94987103]
[1729134629306,4.81821,2629.2,2629.1,1.37920807]
[1729134629607,4.81821,2629.2,2629.1,1.39009807]
[1729134631508,4.81821,2629.2,2629.1,0.3913]
[1729134632998,4.81821,2629.2,2629.1,0.77171]
[1729134633197,4.81821,2629.2,2629.1,0.3913]
[1729134633607,4.81821,2629.2,2629.1,0.77171]
[1729134634204,4.81821,2629.2,2629.1,0.3913]
[1729134634404,4.81821,2629.2,2629.1,0.77171]
[1729134635109,4.81821,2629.2,2629.1,0.3913]
[1729134635296,4.81821,2629.2,2629.1,0.77171]
[1729134635702,3.2078,2629.2,2629.1,2.00171]
[1729134635909,0.95084,2629.7,2629.1,2.00171]
[1729134635910,1.14390825,2629.8,2629.1,5.4245]
[1729134636099,0.4241,2629.6,2629.5,0.38034]
[1729134636406,0.80444,2629.6,2629.5,1.61034]
[1729134636607,2.03444,2629.6,2629.5,1.61034]
[1729134637006,1.6541,2629.6,2629.5,1.61034]
[1729134637206,0.4241,2629.6,2629.5,1.61034]
[1729134637711,0.59371824,2629.8,2629.7,0.38032]
[1729134638004,0.59371824,2629.8,2629.5,1.23]
[1729134638005,0.38033,2629.7,2629.6,2.00943]
[1729134638702,0.38033,2629.7,2629.6,1.6291]
[1729134638902,1.82370824,2629.8,2629.7,0.38032]
[1729134639303,1.82370824,2629.8,2629.7,0.77102]
[1729134639813,1.82370824,2629.8,2629.7,0.3907]
[1729134644615,0.95082,2629.7,2629.2,2.22879807]
[1729134644815,0.3804,2629.2,2629.1,0.3869]
[1729134645006,1.6104,2629.2,2629.1,0.3869]
[1729134645314,2.0251,2629.2,2629.1,0.3869]
[1729134646017,2.0251,2629.2,2629.1,0.8082]
[1729134646818,2.0251,2629.2,2629.1,2.0382]
[1729134647314,2.0251,2629.2,2629.1,0.8082]
[1729134647613,0.38044,2628.9,2628.7,0.38046]
[1729134647817,0.38044,2628.9,2628.8,0.4143]
[1729134649225,0.38047,2628.7,2628.6,0.99879807]
[1729134649419,0.38047,2628.7,2628.4,1.49831101]
[1729134649420,0.3805,2628.5,2628.4,2.64309807]
[1729134649672,1.6105,2628.5,2628.4,1.6443]
[1729134649820,4.4378,2628.5,2628.3,0.99879807]
[1729134650122,4.4378,2628.5,2628.1,1.49831101]
[1729134650123,0.38053,2628.3,2628.2,0.99879807]
[1729134650320,1.61053,2628.3,2628.2,0.99879807]
[1729134650618,0.38054,2628.2,2628.1,0.401]
[1729134650818,1.6162,2628.3,2628.0,0.4121]
[1729134651010,1.61056,2628.1,2628.0,1.6421]
[1729134651618,0.38056,2628.1,2628.0,2.02267]
[1729134651820,0.38056,2628.1,2628.0,1.6421]
[1729134652023,0.38056,2628.1,2628.0,2.02267]
[1729134653322,1.23,2628.2,2628.0,2.02267]
[1729134653562,1.23,2628.2,2628.0,2.02266]
[1729134653825,0.38056,2628.1,2628.0,2.02266]
[1729134655224,1.61056,2628.1,2628.0,0.4121]
[1729134656229,1.61056,2628.1,2628.0,0.79267]
[1729134656734,1.61056,2628.1,2628.0,0.4121]
[1729134657034,1.61056,2628.1,2628.0,0.79267]
[1729134658125,1.61055,2628.2,2628.0,2.02267]
[1729134658631,1.61055,2628.2,2628.1,0.38056]
[1729134661043,1.61055,2628.2,2628.0,2.02267]
[1729134661044,0.38056,2628.1,2628.0,2.02267]
[1729134661235,1.61055,2628.2,2628.1,0.38056]
[1729134663348,1.61055,2628.2,2628.0,1.6421]
[1729134663349,0.38056,2628.1,2628.0,2.02266]
[1729134663646,1.61055,2628.2,2628.1,0.38056]
[1729134664644,1.23,2628.2,2628.1,0.38056]
[1729134665945,0.38056,2628.1,2628.0,2.02267]
[1729134666347,1.23,2628.2,2628.0,1.6421]
[1729134666646,1.61055,2628.2,2628.1,0.38056]
[1729134667339,0.38049,2628.6,2628.2,0.38054]
[1729134667539,0.38049,2628.6,2628.5,1.6105]
[1729134667938,1.61049,2628.6,2628.5,1.6105]
[1729134668334,0.3805,2628.5,2628.4,0.7936]
[1729134668538,1.23,2628.6,2628.4,0.4131]
[1729134668747,1.61049,2628.6,2628.5,0.3805]
[1729134670241,1.23,2628.6,2628.5,0.3805]
[1729134670443,2.01667,2628.7,2628.6,0.38048]
[1729134670749,1.6362,2628.7,2628.6,0.38048]
[1729134670944,2.01667,2628.7,2628.6,0.38048]
[1729134671245,2.01667,2628.7,2628.5,0.78189]
[1729134671246,0.38048,2628.6,2628.5,0.78189]
[1729134671446,1.61048,2628.6,2628.5,0.78189]
[1729134673548,1.23,2628.6,2628.5,0.78189]
[1729134674649,1.61048,2628.6,2628.5,0.78189]
[1729134674850,1.23,2628.6,2628.5,0.78189]
[1729134675250,1.61048,2628.6,2628.5,0.78189]
[1729134675749,1.23,2628.6,2628.5,0.78189]
[1729134675952,1.6362,2628.7,2628.5,1.6314]
[1729134676151,1.6362,2628.7,2628.6,0.38048]
[1729134676743,2.01667,2628.7,2628.6,0.38048]
[1729134677452,0.38048,2628.6,2628.5,2.40318]
[1729134677658,0.38048,2628.6,2628.5,2.01188]
[1729134678145,1.6362,2628.7,2628.5,0.78188]
[1729134678454,1.61047,2628.7,2628.6,0.38048]
[1729134678954,0.38047,2628.7,2628.6,0.38048]
[1729134681055,1.6506,2628.8,2628.5,1.6314]
[1729134681254,2.03107,2628.8,2628.7,0.38047]
[1729134681551,0.80107,2628.8,2628.7,1.61047]
[1729134682355,2.03107,2628.8,2628.7,0.38047]
[1729134682753,0.38047,2628.7,2628.6,1.61047]
[1729134683459,0.38047,2628.7,2628.6,1.61048]
[1729134685849,1.61047,2628.7,2628.6,1.61048]
[1729134688358,1.23,2628.7,2628.5,1.6314]
[1729134688566,0.38048,2628.7,2628.6,1.61047]
[1729134691655,0.4206,2628.8,2628.6,1.23]
[1729134691962,0.80105,2628.8,2628.7,1.61047]
[1729134692163,0.80105,2628.8,2628.7,2.00767]
[1729134692367,2.03105,2628.8,2628.7,2.00767]
[1729134693064,2.03105,2628.8,2628.7,3.00646807]
[1729134693065,0.4206,2628.8,2628.7,3.00646807]
[1729134693362,4.81823,2629.0,2628.9,0.38044]
[1729134694173,4.81823,2629.0,2628.9,0.76684]
[1729134696660,0.76681,2629.2,2628.9,6.41691975]
[1729134696959,0.7668,2629.2,2629.1,1.61041]
[1729134697364,0.7668,2629.2,2629.1,1.99761]
[1729134698457,4.4378,2629.3,2629.1,1.6172]
[1729134698664,4.8182,2629.3,2629.2,0.3804]
[1729134699267,0.3804,2629.2,2629.1,2.4012]
[1729134700174,1.6104,2629.2,2629.1,0.7676]
[1729134700470,2.0165,2629.2,2629.1,0.7676]
[1729134701970,1.6104,2629.2,2629.1,0.7676]
[1729134705166,4.81819,2629.3,2629.2,0.3804]
[1729134705467,4.81819,2629.3,2629.2,1.6104]
[1729134705468,3.2078,2629.3,2629.2,1.6104]
[1729134705661,3.2078,2629.3,2629.2,2.0303]
[1729134705967,3.58818,2629.3,2629.2,2.0303]
[1729134708169,0.38038,2629.3,2629.2,2.0303]
[1729134712475,1.61038,2629.3,2629.2,0.3804]
[1729134713471,2.02248,2629.3,2629.2,0.3804]
[1729134713670,0.79248,2629.3,2629.2,0.3804]
[1729134713880,2.02248,2629.3,2629.2,0.3804]
[1729134716283,0.3804,2629.2,2629.1,1.9976]
[1729134721885,1.6421,2629.3,2629.1,1.6172]
[1729134722182,1.6421,2629.3,2629.2,0.3804]
[1729134722183,2.02249,2629.3,2629.2,0.3804]
[1729134723475,0.3991,2629.4,2629.2,1.6104]
[1729134723476,0.77947,2629.4,2629.2,1.6104]
[1729134723677,0.38037,2629.4,2629.3,2.02218]
[1729134723878,1.61037,2629.4,2629.3,0.79218]
[1729134724982,1.61037,2629.4,2629.3,0.4118]
[1729134725189,0.3804,2629.3,2629.2,0.38039]
[1729134729689,0.3804,2629.2,2629.1,0.7676]
[1729134729983,4.4378,2629.2,2628.9,0.99651975]
[1729134730182,0.38045,2628.8,2628.7,1.79677975]
[1729134730383,0.38045,2628.8,2628.7,2.03027]
[1729134730384,1.61045,2628.8,2628.7,2.03027]
[1729134731388,1.61045,2628.8,2628.7,3.02678975]
[1729134731594,1.61045,2628.8,2628.7,2.03027]
[1729134732487,1.76255,2629.1,2628.7,2.03027]
[1729134732488,0.79972,2629.1,2629.0,0.38042]
[1729134732685,0.79971,2629.1,2629.0,1.61042]
[1729134732881,0.4193,2629.1,2629.0,1.61042]
[1729134733283,0.38042,2629.0,2628.9,1.37694975]
[1729134733483,1.61042,2629.0,2628.9,1.37694975]
[1729134733788,1.61042,2629.0,2628.9,1.37695975]
[1729134733984,1.61042,2629.0,2628.9,0.38044]
[1729134734792,0.38044,2628.9,2628.8,0.76825]
[1729134735190,1.61044,2628.9,2628.8,0.3878]
[1729134735698,1.23,2628.9,2628.4,4.4378]
[1729134735991,1.61048,2628.7,2628.6,1.61048]
[1729134738992,1.61048,2628.7,2628.6,4.55214713]
[1729134742487,2.0697,2629.1,2628.6,4.17166713]
[1729134742686,0.4193,2629.1,2629.0,2.60760842]
[1729134742885,0.38038,2629.4,2629.3,0.38038]
[1729134743081,0.38038,2629.4,2629.3,1.37742288]
[1729134743082,1.61038,2629.4,2629.3,1.37742288]
[1729134743687,4.0425,2629.5,2629.4,0.38037]
[1729134743688,3.2078,2629.5,2629.4,0.38037]
[1729134743991,1.61035,2629.5,2629.4,6.02988868]
[1729134744198,1.23,2629.5,2629.4,3.58817]
[1729134744495,1.61035,2629.5,2629.4,0.38037]
[1729134744886,1.61035,2629.5,2629.2,1.23]
[1729134745126,0.3804,2629.2,2629.1,0.38041]
[1729134745286,1.23,2629.2,2629.1,0.38041]
[1729134745492,1.6304,2629.2,2629.1,0.38041]
[1729134745995,2.0108,2629.2,2629.1,0.38041]
[1729134747590,1.6304,2629.2,2629.1,0.38041]
[1729134749202,0.4004,2629.2,2629.1,1.61041]
[1729134752392,0.4004,2629.2,2629.1,4.55077058]
[1729134756093,0.4004,2629.2,2629.1,4.55074704]
[1729134756506,0.38038,2629.3,2629.1,2.67477272]
[1729134756842,0.4273,2629.5,2629.4,0.38036]
[1729134756843,0.38036,2629.5,2629.4,0.38036]
[1729134756996,1.61035,2629.6,2629.5,0.38035]
[1729134757195,1.61035,2629.6,2629.5,1.37711631]
[1729134758196,1.61035,2629.6,2629.5,0.38035]
[1729134759094,1.61035,2629.6,2629.5,0.79785]
[1729134759799,2.03075,2629.6,2629.5,0.79785]
[1729134760012,1.6504,2629.6,2629.2,0.4105]
[1729134760189,1.61038,2629.3,2629.2,0.7731]
[1729134764229,1.61037,2629.4,2629.3,0.38037]
[1729134764797,0.4204,2629.6,2629.3,1.23]
[1729134764989,0.4204,2629.6,2629.4,0.38037]
[1729134764990,1.61036,2629.5,2629.4,0.38037]
[1729134765292,1.23,2629.5,2629.4,0.38037]
[1729134765495,1.23,2629.5,2629.4,1.61037]
[1729134767493,1.23,2629.5,2629.4,2.60713631]
[1729134767899,1.23,2629.5,2629.4,1.61037]
[1729134769215,1.23,2629.5,2629.4,1.37713631]
[1729134769510,1.23,2629.5,2629.4,0.38037]
[1729134770207,1.61035,2629.5,2629.4,0.38037]
[1729134774400,1.23,2629.5,2629.4,0.38037]
[1729134775301,1.61035,2629.5,2629.4,0.38037]
[1729134777102,1.23,2629.5,2629.4,1.61037]
[1729134778307,1.61035,2629.5,2629.4,1.61037]
[1729134778709,1.23,2629.5,2629.4,1.61037]
[1729134778906,1.61035,2629.5,2629.4,1.61037]
[1729134780707,1.61035,2629.5,2629.4,0.38037]
[1729134781804,1.23,2629.5,2629.3,0.4072]
[1729134782108,0.38035,2629.6,2629.5,0.38034]
[1729134782311,0.38035,2629.6,2629.5,0.76754]
[1729134782312,1.61035,2629.6,2629.5,0.76754]
[1729134784220,1.61035,2629.6,2629.5,0.76755]
[1729134785304,1.61035,2629.6,2629.5,1.76431631]
[1729134785510,1.61035,2629.6,2629.5,0.76755]
[1729134786018,1.61035,2629.6,2629.5,1.76431631]
[1729134787409,1.61035,2629.6,2629.5,2.21145762]
[1729134787604,1.61035,2629.6,2629.5,3.20883588]
[1729134788009,1.61035,2629.6,2629.5,1.7649657]
[1729134788363,1.61035,2629.6,2629.5,3.20948053]
[1729134788709,0.38033,2629.7,2629.6,0.38032]
[1729134788911,0.38033,2629.7,2629.6,2.93964829]
[1729134788912,1.61033,2629.7,2629.6,2.93964829]
[1729134789115,1.61033,2629.7,2629.6,3.31998829]
[1729134789510,1.61033,2629.7,2629.6,0.38034]
[1729134789716,1.61033,2629.7,2629.6,1.3780212]
[1729134793721,1.61033,2629.7,2629.6,0.9976812]
[1729134795714,1.61033,2629.7,2629.6,1.3780212]
[1729134797014,1.61033,2629.7,2629.6,2.82268436]
[1729134797212,1.61033,2629.7,2629.6,1.3780212]
[1729134797414,1.61033,2629.7,2629.6,0.38034]
[1729134799216,1.61033,2629.7,2629.6,0.78874]
[1729134800316,3.2078,2630.0,2629.6,1.6384]
[1729134800517,3.2078,2630.0,2629.9,0.38029]
[1729134800518,4.81809,2630.0,2629.9,0.38029]
[1729134801028,4.81809,2630.0,2629.9,0.78989]
[1729134804122,1.61029,2630.0,2629.9,0.78989]
[1729134805616,3.6353,2630.1,2629.9,1.6396]
[1729134805617,4.4378,2630.1,2629.9,1.6396]
[1729134805821,2.0392,2630.2,2630.0,1.23]
[1729134806123,1.61026,2630.2,2630.1,1.61027]
[1729134806617,1.61025,2630.2,2630.1,1.61027]
[1729134806824,1.61025,2630.2,2630.1,2.00567]
[1729134808231,0.38018,2630.7,2630.2,1.33088]
[1729134808533,0.38017,2630.8,2630.7,0.38016]
[1729134808929,0.38016,2630.9,2630.8,0.38016]
[1729134809129,1.23,2631.0,2630.8,0.38016]
[1729134809130,1.23,2631.0,2630.8,1.61016]
[1729134809328,1.23,2631.0,2630.8,1.23]
[1729134809329,0.38015,2630.9,2630.8,1.23]
[1729134809996,0.38015,2630.9,2630.8,1.61016]
[1729134810116,1.61015,2630.9,2630.8,1.23]
[1729134810320,1.61015,2630.9,2630.8,1.61016]
[1729134811126,0.38015,2630.9,2630.8,1.61016]
[1729134812531,1.61015,2630.9,2630.8,1.61016]
[1729134814165,1.23,2630.9,2630.8,1.61016]
[1729134814328,1.23,2631.0,2630.9,0.38015]
[1729134814529,1.23,2631.0,2630.9,2.02685]
[1729134814530,1.61014,2631.0,2630.9,2.02685]
[1729134815522,1.61014,2631.0,2630.9,1.6467]
[1729134815726,1.61014,2631.0,2630.9,0.4167]
[1729134816130,1.23,2631.0,2630.6,0.3954]
[1729134816334,0.38017,2630.8,2630.7,0.38017]
[1729134816528,0.38017,2630.8,2630.7,1.61017]
[1729134816724,1.6422,2631.1,2630.7,5.0308]
[1729134816925,0.38012,2631.1,2631.0,1.61014]
[1729134817825,1.61012,2631.1,2631.0,1.23]
[1729134821221,1.23,2631.1,2630.9,1.23]
[1729134821425,0.78575505,2631.3,2630.7,0.38018]
[1729134821426,0.38018,2630.8,2630.7,0.38018]
[1729134821622,0.38018,2630.8,2630.7,1.61018]
[1729134821931,5.0308,2630.8,2630.3,0.38023]
[1729134822133,5.0308,2630.8,2630.4,1.61021]
[1729134822134,1.61022,2630.5,2630.4,1.61021]
[1729134822431,0.4245,2630.7,2630.5,0.3802]
[1729134822432,0.38021,2630.6,2630.5,0.3802]
[1729134822628,0.38021,2630.6,2630.5,1.23]
[1729134822834,0.38021,2630.6,2630.5,1.61021]
[1729134824525,0.38019,2630.7,2630.6,0.38019]
[1729134824727,0.38019,2630.7,2630.6,1.61019]
[1729134824929,1.61019,2630.7,2630.6,1.61019]
[1729134825332,1.61018,2630.7,2630.6,1.23]
[1729134827935,1.61018,2630.7,2630.6,1.61019]
[1729134830440,3.2078,2631.4,2630.6,14.2394]
[1729134830642,3.2078,2631.4,2630.9,1.61014]
[1729134830643,0.38014,2631.0,2630.9,1.61014]
[1729134831142,1.61013,2631.1,2631.0,0.38014]
[1729134832836,1.61013,2631.1,2630.9,1.23]
[1729134832837,0.38014,2631.0,2630.9,1.61015]
[1729134833147,1.61015,2631.0,2630.9,0.38015]
[1729134833648,0.38016,2630.9,2630.8,1.61015]
[1729134834542,1.23,2631.0,2630.8,1.61015]
[1729134834543,1.61015,2631.0,2630.9,0.38015]
[1729134836752,0.38015,2631.0,2630.9,0.38015]
[1729134837751,1.23,2631.1,2630.8,1.23]
[1729134837947,1.23,2630.9,2630.7,1.2039]
[1729134838155,1.23,2630.8,2630.7,1.18347]
[1729134838542,0.38016,2630.8,2630.7,2.41347]
[1729134838749,0.38016,2630.9,2630.8,0.38016]
[1729134839048,0.38016,2630.8,2630.7,2.41347]
[1729134839655,0.38016,2630.8,2630.7,2.41348]
[1729134840051,0.76986,2630.9,2630.8,0.38016]
[1729134840348,2.0239,2631.3,2630.8,1.23]
[1729134840543,0.38013,2631.1,2631.0,0.38013]
[1729134840950,1.61013,2631.1,2631.0,0.38013]
[1729134842357,1.61012,2631.1,2631.0,0.38013]
[1729134844151,1.23,2631.1,2630.9,1.23]
[1729134844458,1.44622714,2631.1,2630.9,1.23]
[1729134844756,1.82635714,2631.1,2631.0,0.38014]